[Event "XVI Memorial Lezcano Montalvo 2024"]
[Site "Gran Canaria"]
[Date "2024.03.26"]
[Round "4.36"]
[White "Quiceno Ramirez, Edwin Alejandro"]
[Black "Mesa Rodriguez, Antonio"]
[Result "1-0"]
[ECO "E99"]
[WhiteElo "1888"]
[BlackElo "1697"]
[Annotator "NA RC"]
[PlyCount "93"]
[EventDate "2024.03.23"]
[EventType "swiss"]
[EventCountry "ESP"]
[SourceTitle "playchess.com"]
[Source "ChessBase"]
[SourceQuality "1"]
[TimeControl "5400+30"]

1. d4 {[%emt 0:01:09]} Nf6 {[%emt 0:00:06]} 2. c4 {[%emt 0:00:07]} g6 {[%emt 0:00:05]} 3. Nc3 {[%emt 0:00:05]} Bg7 {[%emt 0:00:07]} 4. e4 {[%emt 0:00:06]} d6 {[%emt 0:00:54]} 5. Nf3 {[%emt 0:00:02]} O-O {[%emt 0:00:00]} 6. Be2 {[%emt 0:00:06]} e5 {[%emt 0:00:44]} 7. O-O {[%emt 0:00:08]} Nc6 {[%emt 0:01:15]} 8. d5 {[%emt 0:00:02]} Ne7 {[%emt 0:00:14]} 9. Ne1 {[%emt 0:00:07]} Nd7 {[%emt 0:01:10]} 10. Be3 {[%emt 0:00:09]} f5 {[%emt 0:00:45]} 11. f3 {[%emt 0:01:41]} f4 {[%emt 0:03:12]} 12. Bf2 {[%emt 0:00:01]} g5 {[%emt 0:02:50]} 13. Nd3 {[%emt 0:00:08]} Nf6 {[%emt 0:04:04]} 14. c5 {[%emt 0:01:01]} h5 {[%emt 0:02:54]} 15. Rc1 {[%emt 0:05:54]} Bd7 {[%emt 0:06:59]} 16. Qb3 {[%emt 0:02:41]} b6 {[%emt 0:24:50]} 17. cxd6 {[%emt 0:01:34]} cxd6 {[%emt 0:00:37]} 18. Nb5 {[%emt 0:04:57]} Bxb5 {[%emt 0:07:26]} 19. Qxb5 {[%emt 0:00:54]} g4 {[%emt 0:03:33]} 20. g3 {[%emt 0:05:04]} Nh7 {[%emt 0:05:53]} 21. gxf4 {[%emt 0:05:24]} exf4 {[%emt 0:02:50]} 22. Bh4 {[%emt 0:00:55]} Bf6 {[%emt 0:18:07]} 23. Bxf6 {[%emt 0:00:43]} Rxf6 {[%emt 0:01:04]} 24. fxg4 {[%emt 0:00:16]} Qf8 {[%emt 0:00:28]} 25. e5 {[%emt 0:06:12]} dxe5 {[%emt 0:01:33]} 26. Nxe5 {[%emt 0:01:21]} Qg7 {[%emt 0:02:33]} 27. Qc4 {[%emt 0:07:20]} Rc8 {[%emt 0:00:52]} 28. Nc6 {[%emt 0:27:03]} Nxc6 {[%emt 0:00:45]} 29. dxc6+ {[%emt 0:00:08]} Kh8 {[%emt 0:00:03]} 30. Qd5 {[%emt 0:08:15]} Rc7 {[%emt 0:04:06]} 31. Qxh5 {[%emt 0:00:37]} Qe7 {[%emt 0:02:25]} 32. Bf3 {[%emt 0:00:38]} Qe3+ {[%emt 0:02:44]} 33. Kh1 {[%emt 0:00:47]} Qe7 {[%emt 0:01:14]} 34. Rfe1 {[%emt 0:01:16]} Re6 {[%emt 0:00:24]} 35. Rxe6 {[%emt 0:00:11]} Qxe6 {[%emt 0:00:02]} 36. Qd5 {[%emt 0:00:21]} Qe7 {[%emt 0:01:09]} 37. Qd4+ {[%emt 0:00:30]} Nf6 {[%emt 0:00:27]} 38. g5 {[%emt 0:00:12]} Qe3 {[%emt 0:01:05]} 39. Qxe3 {[%emt 0:00:21]} fxe3 {[%emt 0:00:00]} 40. gxf6 {[%emt 0:00:03]} Kg8 {[%emt 0:00:00]} 41. Bd5+ {[%emt 0:00:17]} Kf8 {[%emt 0:00:24]} 42. Rg1 {[%emt 0:00:07]} Rf7 {[%emt 0:00:00]} 43. Bxf7 {[%emt 0:00:15]} e2 {[%emt 0:00:00]} 44. Be6 {[%emt 0:00:12]} e1=Q {[%emt 0:00:21]} 45. Rxe1 {[%emt 0:00:05]} b5 {[%emt 0:00:34]} 46. c7 {[%emt 0:00:27]} Ke8 {[%emt 0:00:00]} 47. c8=Q# {[%emt 0:24:08]} 1-0

[Event "XVI Memorial Lezcano Montalvo 2024"]
[Site "Gran Canaria"]
[Date "2024.03.26"]
[Round "4.37"]
[White "Peters, Alexander John"]
[Black "Matos Guedes, Silverio"]
[Result "1-0"]
[ECO "A28"]
[WhiteElo "1993"]
[BlackElo "1675"]
[Annotator "NA RC"]
[PlyCount "59"]
[EventDate "2024.03.23"]
[EventType "swiss"]
[EventCountry "ESP"]
[SourceTitle "playchess.com"]
[Source "ChessBase"]
[SourceQuality "1"]
[TimeControl "5400+30"]

1. Nf3 {[%emt 0:01:10]} Nc6 {[%emt 0:00:14]} 2. c4 {[%emt 0:00:21]} Nf6 {[%emt 0:00:23]} 3. g3 {[%emt 0:00:16]} e5 {[%emt 1:31:23]} 4. d3 {[%emt 0:00:42]} d5 {[%emt 0:00:00]} 5. cxd5 {[%emt 0:00:29]} Nxd5 {[%emt 0:00:00]} 6. Nc3 {[%emt 0:02:09]} Bb4 {[%emt 0:00:00]} 7. Bd2 {[%emt 0:00:34]} Nxc3 {[%emt 0:00:00]} 8. bxc3 {[%emt 0:00:29]} Bd6 {[%emt 0:00:00]} 9. Bg2 {[%emt 0:00:32]} Be6 {[%emt 0:00:00]} 10. O-O {[%emt 0:01:15]} h5 {[%emt 0:00:00]} 11. Ng5 {[%emt 0:06:09]} h4 {[%emt 0:00:00]} 12. Nxe6 {[%emt 0:03:06]} fxe6 {[%emt 0:00:00]} 13. Qb3 {[%emt 0:03:41]} Qc8 {[%emt 0:00:00]} 14. Rab1 {[%emt 0:04:06]} Nd8 {[%emt 0:00:00]} 15. Bxb7 {[%emt 0:04:40]} Nxb7 {[%emt 0:00:00]} 16. Qxb7 {[%emt 0:00:08]} Qd8 {[%emt 0:00:00]} 17. Qc6+ {[%emt 0:02:59]} Kf7 {[%emt 0:00:00]} 18. f4 {[%emt 0:03:21]} e4 {[%emt 0:00:00]} 19. Qxe4 {[%emt 0:01:34]} hxg3 {[%emt 0:00:00]} 20. hxg3 {[%emt 0:00:57]} Qf6 {[%emt 0:00:00]} 21. Kg2 {[%emt 0:04:20]} Qf5 {[%emt 0:00:00]} 22. Qxf5+ {[%emt 0:01:09]} exf5 {[%emt 0:00:00]} 23. Rb5 {[%emt 0:03:22]} g6 {[%emt 0:00:00]} 24. e4 {[%emt 0:02:48]} Rae8 {[%emt 0:00:00]} 25. e5 {[%emt 0:01:00]} g5 {[%emt 0:00:00]} 26. exd6 {[%emt 0:05:54]} Re2+ {[%emt 0:00:00]} 27. Rf2 {[%emt 0:00:21]} Rh2+ {[%emt 0:00:00]} 28. Kxh2 {[%emt 0:00:11]} Rxf2+ {[%emt 0:00:00]} 29. Kg1 {[%emt 0:00:08]} Rxd2 {[%emt 0:00:00]} 30. dxc7 {[%emt 0:00:20]} 1-0

[Event "XVI Memorial Lezcano Montalvo 2024"]
[Site "Gran Canaria"]
[Date "2024.03.26"]
[Round "4.39"]
[White "Lizzul Coppe, Mirko"]
[Black "Sanchez Arencibia, Heriberto"]
[Result "1-0"]
[ECO "C01"]
[WhiteElo "2027"]
[BlackElo "1636"]
[Annotator "RC"]
[PlyCount "67"]
[EventDate "2024.03.23"]
[EventType "swiss"]
[EventCountry "ESP"]
[SourceTitle "playchess.com"]
[Source "ChessBase"]
[SourceQuality "1"]
[TimeControl "5400+30"]

1. e4 {[%emt 0:00:03]} e6 {[%emt 0:00:07]} 2. d4 {[%emt 0:00:06]} d5 {[%emt 0:00:04]} 3. Bd3 {[%emt 0:00:05]} c5 {[%emt 0:00:08]} 4. exd5 {[%emt 0:00:14]} exd5 {[%emt 0:00:08]} 5. Nf3 {[%emt 0:00:38]} Nf6 {[%emt 0:00:08]} 6. O-O {[%emt 0:00:50]} c4 {[%emt 0:00:05]} 7. Re1+ {[%emt 0:03:45]} Be7 {[%emt 0:00:10]} 8. Bf1 {[%emt 0:00:28]} O-O {[%emt 0:00:19]} 9. h3 {[%emt 0:05:51]} Nc6 {[%emt 0:00:36]} 10. b3 {[%emt 0:03:30]} b5 {[%emt 0:00:37]} 11. a4 {[%emt 0:08:45]} cxb3 {[%emt 0:03:31]} 12. axb5 {[%emt 0:00:37]} bxc2 {[%emt 0:00:39]} 13. Qxc2 {[%emt 0:00:09]} Nb4 {[%emt 0:00:34]} 14. Qb3 {[%emt 0:02:42]} Bf5 {[%emt 0:00:39]} 15. Na3 {[%emt 0:19:20]} a5 {[%emt 0:03:43]} 16. bxa6 {[%emt 0:03:13]} Nxa6 {[%emt 0:00:24]} 17. Bxa6 {[%emt 0:04:30]} Rxa6 {[%emt 0:00:12]} 18. Qb7 {[%emt 0:00:14]} Re6 {[%emt 0:00:20]} 19. Re5 {[%emt 0:08:11]} Rxe5 {[%emt 0:06:51]} 20. Nxe5 {[%emt 0:01:21]} Bxa3 {[%emt 0:10:21]} 21. Bxa3 {[%emt 0:05:35]} Qc8 {[%emt 0:00:25]} 22. Qe7 {[%emt 0:01:34]} Qe8 {[%emt 0:00:55]} 23. Qxf8+ {[%emt 0:00:24]} Qxf8 {[%emt 0:00:13]} 24. Bxf8 {[%emt 0:00:06]} Kxf8 {[%emt 0:00:32]} 25. Ra8+ {[%emt 0:00:10]} Ne8 {[%emt 0:02:24]} 26. g4 {[%emt 0:02:26]} Be6 {[%emt 0:00:05]} 27. f4 {[%emt 0:00:36]} f6 {[%emt 0:01:18]} 28. Nd3 {[%emt 0:01:18]} Bf7 {[%emt 0:01:17]} 29. Kf2 {[%emt 0:00:51]} g6 {[%emt 0:00:36]} 30. Nc5 {[%emt 0:01:07]} Kg7 {[%emt 0:00:26]} 31. Ne6+ {[%emt 0:06:12]} Kg8 {[%emt 0:01:06]} 32. Nc7 {[%emt 0:00:59]} Kf8 {[%emt 0:00:26]} 33. Nxe8 {[%emt 0:00:44]} Bxe8 {[%emt 0:00:19]} 34. Rd8 {[%emt 0:00:08]} 1-0

[Event "XVI Memorial Lezcano Montalvo 2024"]
[Site "Gran Canaria"]
[Date "2024.03.26"]
[Round "4.41"]
[White "Cabrera Ramos, Javier"]
[Black "Richter, Anastasia"]
[Result "1-0"]
[ECO "D00"]
[WhiteElo "1784"]
[BlackElo "1614"]
[Annotator "NA RC"]
[PlyCount "117"]
[EventDate "2024.03.23"]
[EventType "swiss"]
[EventCountry "ESP"]
[SourceTitle "playchess.com"]
[Source "ChessBase"]
[SourceQuality "1"]
[TimeControl "5400+30"]

1. d4 {[%emt 0:00:05]} d5 {[%emt 0:00:04]} 2. g3 {[%emt 0:00:16]} Nf6 {[%emt 0:01:13]} 3. Bg2 {[%emt 0:00:11]} Bf5 {[%emt 0:01:54]} 4. c4 {[%emt 0:01:21]} e6 {[%emt 0:02:19]} 5. Qb3 {[%emt 0:00:30]} Nc6 {[%emt 0:06:39]} 6. e3 {[%emt 0:01:13]} Qd7 {[%emt 0:08:47]} 7. Bd2 {[%emt 0:00:49]} Be7 {[%emt 0:08:54]} 8. Nc3 {[%emt 0:01:47]} Nb4 {[%emt 0:05:18]} 9. Ne4 {[%emt 0:00:21]} Nd3+ {[%emt 0:09:52]} 10. Qxd3 {[%emt 0:00:23]} Nxe4 {[%emt 0:00:22]} 11. Qb3 {[%emt 0:02:41]} O-O {[%emt 0:02:45]} 12. Nf3 {[%emt 0:01:04]} c5 {[%emt 0:13:21]} 13. cxd5 {[%emt 0:03:51]} exd5 {[%emt 0:00:46]} 14. Bc3 {[%emt 0:02:11]} c4 {[%emt 0:03:17]} 15. Qd1 {[%emt 0:00:24]} b5 {[%emt 0:02:30]} 16. a3 {[%emt 0:01:44]} a5 {[%emt 0:03:18]} 17. Nd2 {[%emt 0:00:15]} Qe6 {[%emt 0:03:28]} 18. Nxe4 {[%emt 0:00:35]} Bxe4 {[%emt 0:00:29]} 19. O-O {[%emt 0:00:38]} Bxg2 {[%emt 0:03:46]} 20. Kxg2 {[%emt 0:00:02]} f5 {[%emt 0:00:47]} 21. Qd2 {[%emt 0:00:12]} Qb6 {[%emt 0:03:10]} 22. Qc2 {[%emt 0:00:08]} h5 {[%emt 0:02:13]} 23. b4 {[%emt 0:00:33]} a4 {[%emt 0:02:20]} 24. Qe2 {[%emt 0:00:08]} Qg6 {[%emt 0:00:53]} 25. Qf3 {[%emt 0:00:03]} Rad8 {[%emt 0:00:36]} 26. Rae1 {[%emt 0:00:02]} Rd7 {[%emt 0:02:57]} 27. Rh1 {[%emt 0:00:03]} Bd8 {[%emt 0:02:40]} 28. Qd1 {[%emt 0:00:10]} Bc7 {[%emt 0:02:27]} 29. Kf1 {[%emt 0:00:44]} Qg4 {[%emt 0:02:10]} 30. f3 {[%emt 0:00:34]} Qh3+ {[%emt 0:01:12]} 31. Kf2 {[%emt 0:00:02]} h4 {[%emt 0:01:06]} 32. Reg1 {[%emt 0:00:09]} Rd6 {[%emt 0:03:09]} 33. Ke2 {[%emt 0:00:08]} f4 {[%emt 0:01:21]} 34. gxf4 {[%emt 0:00:19]} Qe6 {[%emt 0:00:20]} 35. Rg4 {[%emt 0:00:16]} Rd7 {[%emt 0:00:30]} 36. Kd2 {[%emt 0:00:24]} Re7 {[%emt 0:00:26]} 37. Re1 {[%emt 0:00:45]} Qf5 {[%emt 0:00:23]} 38. Qc2 {[%emt 0:00:34]} Qxc2+ {[%emt 0:01:04]} 39. Kxc2 {[%emt 0:00:02]} Rfe8 {[%emt 0:00:10]} 40. Bd2 {[%emt 0:00:09]} Bd8 {[%emt 0:00:33]} 41. f5 {[%emt 0:00:42]} Kf8 {[%emt 0:00:50]} 42. e4 {[%emt 0:00:02]} Rf7 {[%emt 0:00:27]} 43. Bg5 {[%emt 0:02:33]} Bxg5 {[%emt 0:00:33]} 44. Rxg5 {[%emt 0:00:04]} dxe4 {[%emt 0:00:25]} 45. fxe4 {[%emt 0:00:08]} Rf6 {[%emt 0:00:33]} 46. Kc3 {[%emt 0:00:17]} g6 {[%emt 0:00:30]} 47. fxg6 {[%emt 0:00:48]} Rf3+ {[%emt 0:00:11]} 48. Kc2 {[%emt 0:00:16]} Kg7 {[%emt 0:00:19]} 49. Rxb5 {[%emt 0:00:13]} Rf4 {[%emt 0:00:53]} 50. e5 {[%emt 0:01:04]} Rxd4 {[%emt 0:00:34]} 51. Kc3 {[%emt 0:00:01]} Rg4 {[%emt 0:00:02]} 52. Re2 {[%emt 0:00:37]} Re6 {[%emt 0:00:33]} 53. Rc5 {[%emt 0:00:16]} Rgxg6 {[%emt 0:00:43]} 54. Kxc4 {[%emt 0:00:34]} Rg1 {[%emt 0:00:51]} 55. Kd5 {[%emt 0:00:18]} Rgg6 {[%emt 0:00:19]} 56. Rc4 {[%emt 0:00:37]} Rh6 {[%emt 0:00:17]} 57. Rxh4 {[%emt 0:00:07]} Rxe5+ {[%emt 0:00:15]} 58. Rxe5 {[%emt 0:00:31]} Rxh4 {[%emt 0:00:02]} 59. Re3 {[%emt 0:00:44]} 1-0

[Event "XVI Memorial Lezcano Montalvo 2024"]
[Site "Gran Canaria"]
[Date "2024.03.26"]
[Round "4.42"]
[White "Grube, Kurt"]
[Black "Juan Miguel, Javier"]
[Result "1-0"]
[ECO "D35"]
[WhiteElo "1773"]
[BlackElo "1597"]
[Annotator "NA RC"]
[PlyCount "123"]
[EventDate "2024.03.23"]
[EventType "swiss"]
[EventCountry "ESP"]
[SourceTitle "playchess.com"]
[Source "ChessBase"]
[SourceQuality "1"]
[TimeControl "5400+30"]

1. c4 {[%emt 0:00:03]} e6 {[%emt 0:00:39]} 2. Nf3 {[%emt 0:00:18]} Nf6 {[%emt 0:01:06]} 3. d4 {[%emt 0:00:16]} d5 {[%emt 0:01:06]} 4. Nc3 {[%emt 0:00:15]} c6 {[%emt 0:01:12]} 5. cxd5 {[%emt 0:00:24]} exd5 {[%emt 0:02:04]} 6. h3 {[%emt 0:00:28]} Bd6 {[%emt 0:05:02]} 7. e3 {[%emt 0:01:56]} Bf5 {[%emt 0:03:47]} 8. Bd3 {[%emt 0:00:20]} Ne4 {[%emt 0:02:47]} 9. Qc2 {[%emt 0:01:36]} Qe7 {[%emt 0:05:04]} 10. Nd2 {[%emt 0:07:12]} Bb4 {[%emt 0:03:26]} 11. a3 {[%emt 1:23:12]} Bxc3 {[%emt 1:09:47]} 12. bxc3 {[%emt 0:00:00]} Nd7 {[%emt 0:00:00]} 13. c4 {[%emt 0:00:00]} Ndf6 14. Nf3 {[%emt 0:01:30]} Kf8 {[%emt 0:01:30]} 15. a4 {[%emt 0:00:30]} Qd8 {[%emt 0:00:00]} 16. Ba3+ {[%emt 0:00:00]} Kg8 {[%emt 0:00:00]} 17. O-O {[%emt 0:00:00]} h6 {[%emt 0:00:00]} 18. Ne5 {[%emt 0:00:00]} g5 {[%emt 0:00:00]} 19. f3 {[%emt 0:02:00]} dxc4 {[%emt 0:02:30]} 20. Nxc4 {[%emt 0:00:30]} Ng3 {[%emt 0:00:30]} 21. Bxf5 {[%emt 0:00:30]} Nxf1 {[%emt 0:00:30]} 22. Rxf1 {[%emt 0:00:00]} Nd5 23. e4 {[%emt 0:01:00]} Ne7 {[%emt 0:01:00]} 24. Nd6 {[%emt 0:00:30]} Nxf5 {[%emt 0:00:30]} 25. Nxf5 {[%emt 0:00:30]} Qd7 {[%emt 0:00:30]} 26. Qc4 {[%emt 0:00:30]} Rd8 {[%emt 0:00:30]} 27. Rb1 {[%emt 0:00:30]} Rh7 {[%emt 0:00:30]} 28. Nd6 {[%emt 0:00:30]} Rb8 {[%emt 0:00:30]} 29. e5 {[%emt 0:00:30]} Qe6 {[%emt 0:00:30]} 30. Qd3 {[%emt 0:00:30]} f6 {[%emt 0:00:30]} 31. Ne4 {[%emt 0:00:00]} fxe5 32. dxe5 {[%emt 0:00:00]} Rf7 {[%emt 0:00:00]} 33. Nf6+ {[%emt 0:00:00]} Kh8 34. Qg6 Rxf6 {[%emt 0:00:00]} 35. exf6 Qg8 {[%emt 0:00:00]} 36. Qxh6+ {[%emt 0:00:00]} Qh7 {[%emt 0:00:00]} 37. Qxh7+ {[%emt 0:00:00]} Kxh7 {[%emt 0:00:00]} 38. Kf2 {[%emt 0:00:00]} Kg6 {[%emt 0:04:00]} 39. Be7 {[%emt 0:00:00]} b6 40. Ke3 {[%emt 0:05:00]} c5 {[%emt 0:01:00]} 41. Kd3 {[%emt 0:00:30]} g4 {[%emt 0:00:30]} 42. fxg4 {[%emt 0:00:00]} Kf7 {[%emt 0:00:00]} 43. Kc4 {[%emt 0:00:00]} a6 {[%emt 0:00:00]} 44. Bxc5 {[%emt 0:00:00]} Kxf6 {[%emt 0:00:00]} 45. Rxb6+ {[%emt 0:00:00]} Rxb6 {[%emt 0:00:00]} 46. Bxb6 {[%emt 0:00:00]} Ke7 {[%emt 0:00:00]} 47. g5 {[%emt 0:00:00]} Kf7 {[%emt 0:00:00]} 48. g4 {[%emt 0:00:00]} Kg7 {[%emt 0:00:00]} 49. Bd8 {[%emt 0:00:00]} Kf7 {[%emt 0:00:00]} 50. Kc5 {[%emt 0:00:00]} Ke8 {[%emt 0:00:00]} 51. Bf6 {[%emt 0:00:00]} Kd7 {[%emt 0:00:00]} 52. g6 {[%emt 0:00:00]} Ke8 {[%emt 0:00:00]} 53. g7 {[%emt 0:00:00]} Kf7 {[%emt 0:00:00]} 54. g5 {[%emt 0:00:00]} Kg8 {[%emt 0:00:00]} 55. Kb6 {[%emt 0:00:00]} a5 {[%emt 0:00:00]} 56. Kxa5 {[%emt 0:00:00]} Kh7 {[%emt 0:00:00]} 57. Kb4 {[%emt 0:00:00]} Kg8 {[%emt 0:00:00]} 58. a5 {[%emt 0:00:00]} Kh7 {[%emt 0:00:00]} 59. Kb5 {[%emt 0:00:00]} Kg8 {[%emt 0:00:00]} 60. a6 {[%emt 0:00:00]} Kh7 61. a7 {[%emt 0:00:00]} Kg8 {[%emt 0:00:00]} 62. a8=Q+ {[%emt 0:00:00]} 1-0

[Event "XVI Memorial Lezcano Montalvo 2024"]
[Site "Gran Canaria"]
[Date "2024.03.27"]
[Round "5.1"]
[White "Dvirnyy, Danyyil"]
[Black "Larino Nieto, David"]
[Result "0-1"]
[ECO "B07"]
[WhiteElo "2482"]
[BlackElo "2365"]
[Annotator "TA"]
[PlyCount "96"]
[EventDate "2024.03.23"]
[EventType "swiss"]
[EventCountry "ESP"]
[SourceTitle "playchess.com"]
[Source "ChessBase"]
[SourceQuality "1"]
[TimeControl "5400+30"]

{[%evp 9,96,0,0,10,10,0,15,14,10,11,46,57,61,45,56,38,87,15,32,31,27,33,8,10,29,7,77,79,63,67,45,10,12,15,16,0,19,0,69,69,143,136,113,111,121,118,172,149,179,162,138,69,172,166,156,132,250,260,285,241,237,248,256,240,533,505,541,342,347,315,332,69,64,62,68,0,0,-266,-107,-492,-486,-1345,-939,-1533,-1436,-29982,-29983,-29986,-29987]} 1. e4 {[%emt 0:00:04]} d6 {[%emt 0:00:01]} 2. d4 {[%emt 0:00:17]} Nf6 {[%emt 0:00:02]} 3. Nc3 {[%emt 0:01:45]} e6 {[%emt 0:00:04]} 4. Be3 {[%emt 0:03:02]} Be7 {[%emt 0:00:54]} 5. h3 {[%emt 0:02:20]} O-O {[%emt 0:00:34]} 6. Nf3 {[%emt 0:03:51]} a6 {[%emt 0:04:09]} 7. Bd3 {[%emt 0:04:42]} b5 {[%emt 0:03:29]} 8. Ne2 {[%emt 0:01:50] Die Stellung ist ausgeglichen.} Bb7 {[%emt 0:01:02][%cal Oc7c5]} 9. Ng3 {[%emt 0:00:20]} d5 {[%emt 0:03:33]} 10. e5 {[%emt 0:01:33]} Ne4 {[%emt 0:02:13]} 11. O-O {[%emt 0:02:09]} Nd7 {[%emt 0:03:30]} 12. c3 {[%emt 0:14:19]} c5 {[%emt 0:04:54]} (12... f5 $14 {verdient Beachtung.}) 13. Ne2 {[%emt 0:06:47]} (13. Qb1 $16) 13... b4 {[%emt 0:10:42]} 14. cxb4 {[%emt 0:03:33]} cxd4 {[%emt 0:01:27]} 15. Bxd4 {[%emt 0:00:53]} Bxb4 {[%emt 0:00:58]} 16. Qb3 {[%emt 0:02:54]} a5 {[%emt 0:00:08]} 17. a3 {[%emt 0:00:16]} Ndc5 {[%emt 0:00:30]} (17... Bc5 $1 $11) 18. Bxc5 $1 $16 {[%emt 0:00:06]} Nxc5 {[%emt 0:00:07]} 19. Bxh7+ {[%emt 0:01:01]} Kxh7 {[%emt 0:00:02]} 20. Qc2+ {[%emt 0:00:09]} (20. Qe3 $5) 20... Ne4 {[%emt 0:00:07]} 21. axb4 {[%emt 0:00:05]} axb4 {[%emt 0:00:02] Schwarz hat schwache schwarze Felder} 22. Ned4 {[%emt 0:03:26]} Qb6 {[%emt 0:09:32]} 23. Qb3 {[%emt 0:01:02]} f6 {[%emt 0:02:47]} (23... Rxa1 $11 24. Rxa1 Ra8 25. Rxa8 Bxa8) 24. Rxa8 $1 $14 {[%emt 0:01:56]} Bxa8 {[%emt 0:06:05]} (24... Rxa8 $14 25. Qe3 Bc8) 25. Qe3 $16 {[%emt 0:00:31]} Bb7 {[%emt 0:01:15]} 26. Qf4 {[%emt 0:01:06]} Kg8 {[%emt 0:00:33]} 27. exf6 {[%emt 0:01:21]} gxf6 {[%emt 0:13:16]} (27... Rxf6 $16 28. Qe5 Qa6) 28. Rc1 $18 {[%emt 0:01:10]} Rc8 {[%emt 0:02:31] Es drohte Rc7} 29. Qg4+ {[%emt 0:00:45]} Kf7 {[%emt 0:00:35]} 30. Qh5+ {[%emt 0:01:06]} ({Günstiger ist} 30. Rd1 $1 $16 {Und Qh5+ würde nun gewinnen.} Rh8 31. Rc1) 30... Ke7 {[%emt 0:07:25]} (30... Kg7 $14 31. Qg4+ Kf8) 31. Qh7+ $1 {[%emt 0:00:20]} Kd6 {[%emt 0:00:18] [#]} 32. Rd1 {[%emt 0:00:04]} Re8 {[%emt 0:07:09]} (32... Bc6 $16) 33. h4 {[%emt 0:05:19]} Bc6 {[%emt 0:01:43] [#]} 34. Nb5+ $1 {[%emt 0:04:56][%mdl 512]} Qxb5 {[%emt 0:04:06]} 35. Qxe4 {[%emt 0:00:04]} e5 {[%emt 0:03:34]} 36. Qg6 {[%emt 0:00:45]} Re6 {[%emt 0:01:45]} (36... d4 37. Qxf6+ Kc7) 37. h5 {[%emt 0:00:42]} d4 {[%emt 0:00:27]} 38. Nh4 {[%emt 0:02:34]} Qe2 {[%emt 0:00:26]} 39. Nf5+ {[%emt 0:00:35]} Kd5 {[%emt 0:01:32]} 40. Ne3+ {[%emt 0:01:33]} (40. Rf1 $18 {Zielt auf Qg8 ab.} Bb5 41. Ng3) 40... Kc5 $14 {[%emt 0:00:04]} 41. Rc1+ {[%emt 0:02:53]} Kb5 {[%emt 0:00:01]} 42. Nc4 {[%emt 0:01:02]} (42. Nf5 $14 Be4 (42... Qxb2 43. Rf1 $11) 43. Qf7 Qxb2 (43... Bxf5 $2 44. Qd7+ Ka6 45. h6 $18) 44. Rc8 (44. Qd7+ Bc6 $11)) 42... d3 $36 {[%emt 0:00:08][%mdl 2048] Schwarz steht aktiver. Tanz auf der Rasierklinge.} 43. Qg8 $2 {[%emt 0:03:24][%mdl 8192] [#]} (43. Ne3 $11 {und Weiss muss sich keine Sorgen machen.} d2 (43... Qxb2 $2 44. Qxd3+ Ka4 45. Qa6+ Kb3 46. Ra1 $18) 44. Rf1) 43... Qc2 {[%emt 0:00:17] Aktives Gegenspiel!} (43... d2 $3 $19 {[%mdl 512] und Schwarz behält klar die Oberhand.} 44. Nxd2 (44. Qb8+ Ka4) 44... Qxd2 45. Qb8+ Ka4 46. Ra1+ Kb3) 44. Ra1 {[%emt 0:05:03][%mdl 8192] Davon erholt Weiß sich nicht mehr.} (44. Rxc2 $17 {war die entscheidende Verteidigung.} dxc2 45. Qxe6 c1=Q+ (45... c1=R+ $2 46. Kh2 $18) 46. Kh2 Qf4+ (46... Qxc4 47. Qxf6 Qe4 48. f3 $11) 47. Kh3) 44... Qxc4 $19 {[%emt 0:00:08]} 45. h6 {[%emt 0:03:27]} (45. Qb8+ $142 Kc5 46. Ra5+ Kd4 47. Qa7+ Ke4 48. Qe3+ Kf5 49. Qh3+ Kg5 50. Qe3+ Kxh5 51. Ra7) 45... d2 {[%emt 0:01:05]} 46. Qb8+ {[%emt 0:00:55]} Kc5 {[%emt 0:00:22] ( -> ...Qc1+)} 47. h7 {[%emt 0:00:30]} Qc1+ {[%emt 0:00:15]} 48. Kh2 {[%emt 0:00:07]} Qxa1 {[%emt 0:00:45] Gewichteter Fehlerwert: Weiß=0.76/Schwarz=0.28 (präzise) .  Verlustzug:     	Weiß=2     	---        Gewinn verpasst:   	Weiß=1     	---        Fehler:       	Weiß=4     	Schwarz=9     Ungenau:       	Weiß=3     	Schwarz=1     OK:         	Weiß=15    	Schwarz=10    Bester:       	Weiß=4     	Schwarz=11    Stark:        	Weiß=2     	---} (48... d1=R $2 {verliert.} 49. Qa7+ (49. h8=R $2 {ist ein Selbstmatt.} Rh1+ 50. Kg3 Qg5#) (49. Rxc1+ Rxc1 50. h8=Q Re8 $18) 49... Kc4 50. Rxc1+ (50. h8=R $2 Rh1+ 51. Kg3 Qg5#) 50... Rxc1 51. h8=Q $18 (51. h8=R Rd6 $18)) 0-1